Cogmind - Beta 11.1 @@@ ROGUE MODE // 2022.06.29 @ 17:44:01 Player: Cyurio Result: Self-destructed Performance ------------- Evolutions (1) 500 Regions Visited (3) 600 Robots Destroyed (25) 125 Value Destroyed (808) 808 Prototype IDs (1) 20 Alien Tech Used (0) 0 Bonus (11) 11 TOTAL SCORE: 2064 Bonus ------- High Alert Combat Kills 11 Cogmind --------- Core Integrity 37/400 Matter 265/300 Energy 220/265 System Corruption 0% Temperature Cool (0) Movement Walking (130) Location -9/Mines Parts ------- > --- POWER (1) -------- Improved Ion Engine > --- PROPULSION (2) --- Titanium Leg Titanium Leg > --- UTILITY (4) ------ Large Storage Unit Improved Targeting Computer > --- WEAPON (2) ------- (None) > --- INVENTORY (15) --- Armored Wheel Improved Terrain Scanner Terrain Scan Processor Datajack Peak State ------------ > --- POWER ------------ Ion Engine > --- PROPULSION ------- Titanium Leg Titanium Leg > --- UTILITY ---------- Heat Sink Small Storage Unit High-capacity Matter Pod Weight Redist. System > --- WEAPON ----------- Light Assault Rifle Improved Assault Rifle > --- INVENTORY -------- Ion Engine Titanium Leg Titanium Leg Wheel Improved Terrain Scanner Terrain Scan Processor Grenade Launcher Datajack [Rating: 17] Favorites ----------- Power Ion Engine Engine Ion Engine Propulsion Titanium Leg Treads Improved Treads Leg Titanium Leg Utility Small Storage Unit Device Heat Sink Storage Small Storage Unit Processor Improved Targeting Computer Weapon Light Assault Rifle Energy Gun EM Pulse Gun Ballistic Gun Light Assault Rifle Launcher Grenade Launcher Build | -11 -10 -9 -9 ------- Run | Scr Mat Mat Min Slots Evolved 2 | . . 2 . Power . | . . . . Propulsion . | . . . . Utility 2 | . . 2 . Weapon . | . . . . Parts Attached 24 | . 7 14 3 Power 3 | . 1 1 1 Engine 3 | . 1 1 1 Core . | . . . . Reactor . | . . . . Propulsion 8 | . 3 4 1 Treads 3 | . 2 1 . Leg 5 | . 1 3 1 Wheel . | . . . . Hover . | . . . . Flight . | . . . . Utility 6 | . 1 5 . Device 3 | . 1 2 . Storage 2 | . . 2 . Processor 1 | . . 1 . Hackware . | . . . . Protection . | . . . . Artifact . | . . . . Weapon 7 | . 2 4 1 Energy Gun . | . . . . Energy Cannon . | . . . . Ballistic Gun 4 | . 1 3 . Ballistic Cannon . | . . . . Launcher 3 | . 1 1 1 Special Weapon . | . . . . Impact Weapon . | . . . . Slashing Weapon . | . . . . Piercing Weapon . | . . . . Special Melee Weapon . | . . . . Unidentified Prototypes 1 | . . 1 . Parts Lost 11 | . . 10 1 Power 2 | . . 2 . Propulsion 2 | . . 2 . Utility 3 | . . 3 . Weapon 4 | . . 3 1 Highest Loss Streak 6 | . . 5 6 To Critical Strikes . | . . . . Average Slot Usage (%) 92 | . 90 95 60 Engine 11 | . 14 10 11 Treads 4 | . 6 4 . Leg 18 | . 21 17 22 Device 13 | . 4 18 . Storage 19 | . 14 21 11 Processor 1 | . . 1 11 Energy Gun 3 | . 10 . . Ballistic Gun 18 | . 17 19 . Naked Turns . | . . . . Heaviest Build 32 | 13 15 32 30 Greatest Support 52 | 20 46 52 34 Greatest Overweight (x) 4 | . 4 1 . Average Overweight (x) . | . . . . Largest Inventory Capacity 15 | . 8 15 15 Average Capacity 8 | . 8 8 15 Most Carried 8 | . 8 8 6 Average Carried 7 | . 7 7 4 Final Capacity 15 | 8 8 15 15 Final Carried 8 | 6 8 7 4 Class Distribution -------------------- 100% | Mutant Dominant Class ---------------- Mutant | -10/Materials Mutant | -9/Materials Mutant | -9/Mines Resources | -11 -10 -9 -9 ----------- Run | Scr Mat Mat Min Matter Collected 638 | 200 85 353 . Remotely . | . . . . Salvage Created 921 | . 326 586 9 Parts 50 | . 17 33 . Haulers Intercepted . | . . . . Recyclers Shooed . | . . . . Parts Field Recycled . | . . . . Retrieved Matter . | . . . . Parts Self-Destructed . | . . . . Prevented . | . . . . Kills | -11 -10 -9 -9 ------- Run | Scr Mat Mat Min Combat Hostiles Destroyed 24 | . 7 16 1 Guns 17 | . 7 10 . AOE 7 | . . 6 1 Classes Destroyed 4 | . 1 3 . Watcher 1 | . . 1 . Swarmer 4 | . . 3 1 Grunt 17 | . 7 10 . Sentry 3 | . . 3 . Best Kill Streak 7 | . 4 7 1 Combat Bots Only 6 | . 4 6 1 Max Kills in Single Turn 2 | . 1 2 1 Gunslinging . | . . . . Exploded 2 | . . 2 1 Melee . | . . . . Uniques/NPCs Destroyed . | . . . . Combat | -11 -10 -9 -9 -------- Run | Scr Mat Mat Min Damage Taken 1652 | . 257 1312 83 Core 441 | . 78 348 15 Absorbed by Shields . | . . . . Core Remaining (%) 84 | 100 68 . . Volleys Fired 90 | . 27 62 1 Largest 2 | . 2 2 1 Hottest 60 | . 60 43 30 Shots Fired 151 | . 54 96 1 Gun 145 | . 54 91 . Cannon . | . . . . Launcher 6 | . . 5 1 Special . | . . . . Kinetic 130 | . 39 91 . Thermal . | . . . . Explosive 6 | . . 5 1 Electromagnetic 15 | . 15 . . Robot Hit Streak 35 | . 24 35 10 Robot Miss Streak 3 | . 3 3 . Penetration Max . | . . . . Secondary Targets 1 | . 1 . . Max Gunslinging Chain 1 | . 1 . . Shots Hit Robots 118 | . 41 76 1 Core Hits 55 | . 17 37 1 Critical Kills . | . . . . Critical Parts Destroyed 1 | . . 1 . Critical Strikes 1 | . . 1 . Destroy 1 | . . 1 . Melee Attacks . | . . . . Impact . | . . . . Slashing . | . . . . Piercing . | . . . . Sneak Attacks . | . . . . Combat Hostiles . | . . . . Follow-up Attacks . | . . . . Damage Inflicted 1819 | . 376 1296 147 Guns 1232 | . 376 856 . Cannons . | . . . . Explosions 582 | . . 435 147 Melee . | . . . . Ramming 5 | . . 5 . Kinetic 1102 | . 246 856 . Thermal . | . . . . Explosive 582 | . . 435 147 Electromagnetic 130 | . 130 . . Impact . | . . . . Slashing . | . . . . Piercing . | . . . . Highest Corruption . | . . . . Average Corruption . | . . . . Corruption Purged . | . . . . Corruption Blocked . | . . . . Overload Shots . | . . . . Overflow Damage 13 | . . 13 . Projectiles . | . . . . Explosions 13 | . . 13 . Melee . | . . . . Knockbacks . | . . . . Impact . | . . . . Kinetic . | . . . . Secondary . | . . . . Self-Inflicted Damage 91 | . . 55 36 Shots 4 | . . 3 1 Rammed 1 | . . 1 . Targets Rammed 1 | . . 1 . Kicked . | . . . . Crushed . | . . . . Highest Temperature 120 | . 120 13 . Average Temperature 53 | . 59 6 . Received Heat Transfer 654 | . 138 516 . Siege Activations . | . . . . Robots Corrupted . | . . . . Combat Hostiles . | . . . . Parts Fried 1 | . 1 . . Impact Corruptions . | . . . . Robots Melted . | . . . . Combat Hostiles . | . . . . Parts Melted . | . . . . Heat Transferred . | . . . . Parts Sabotaged . | . . . . Parts Stolen . | . . . . Parts Stripped . | . . . . Power Chain Reactions . | . . . . Missiles Intercepted . | . . . . Alert | -11 -10 -9 -9 ------- Run | Scr Mat Mat Min Peak Influence 406 | . 125 406 157 Initial 113 | . . 44 113 Average 125 | . 53 162 116 Maximum Alert Level 2 | . . 2 . Low Security (%) 84 | . 100 76 100 Level 1 12 | . . 19 . Level 2 2 | . . 4 . Level 3 . | . . . . Level 4 . | . . . . Level 5 . | . . . . High Security . | . . . . Max Security . | . . . . Squads Dispatched 4 | . 3 1 . Investigation 2 | . 2 . . Extermination . | . . . . Reinforcement 2 | . 1 1 . Assault . | . . . . Garrison . | . . . . Intercept . | . . . . Searches Triggered . | . . . . Construction Impeded . | . . . . Haulers Reinforced . | . . . . Active Scanning Responses . | . . . . Cargo Convoy Interrupts . | . . . . Stealth | -11 -10 -9 -9 --------- Run | Scr Mat Mat Min Distress Signals 4 | . . 4 . Communications Jammed . | . . . . Distress Signals . | . . . . Times Spotted 41 | . 8 30 3 Peak Tracking Total 9 | . 5 9 3 Tactical Retreats . | . . . . Traps | -11 -10 -9 -9 ------- Run | Scr Mat Mat Min Traps Triggered 1 | . 1 . . Indirectly . | . . . . Trap Hack Attempts . | . . . . Triggered . | . . . . Disarmed 6 | . . 6 . Reprogrammed . | . . . . Reused . | . . . . Traps Extracted . | . . . . Installed . | . . . . Triggered . | . . . . Machines | -11 -10 -9 -9 ---------- Run | Scr Mat Mat Min Machines Disabled . | . . . . Max in Single Turn . | . . . . Machines Sabotaged . | . . . . Garrisons Compromised . | . . . . Overloaded Fab Kills . | . . . . Hacking | -11 -10 -9 -9 --------- Run | Scr Mat Mat Min Machines Accessed 11 | . 4 7 . Terminals 10 | . 3 7 . Fabricators . | . . . . Repair Stations . | . . . . Recycling Units 1 | . 1 . . Scanalyzers . | . . . . Garrison Access . | . . . . Total Hacks 36 | . 10 26 . Successful 23 | . 9 14 . Failed 13 | . 1 12 . Catastrophic 1 | . . 1 . Database Lockouts . | . . . . Manual 29 | . 10 19 . Terminals 35 | . 9 26 . Fabricators . | . . . . Repair Stations . | . . . . Recycling Units 1 | . 1 . . Scanalyzers . | . . . . Garrison Access . | . . . . Terminal Hacks 4 | . . 4 . Alert Level 1 | . . 1 . Locate Traps 1 | . . 1 . Disarm Traps 1 | . . 1 . Zone Layout 1 | . . 1 . Fabricator Hacks . | . . . . Repair Station Hacks . | . . . . Recycling Unit Hacks . | . . . . Scanalyzer . | . . . . Garrison Access Hacks . | . . . . Unauthorized Hacks 19 | . 9 10 . Terminals 18 | . 8 10 . Track 5 | . 3 2 . Assimilate 4 | . 2 2 . Botnet 9 | . 3 6 . Fabricators . | . . . . Repair Stations . | . . . . Recycling Units 1 | . 1 . . Tunnel 1 | . 1 . . Scanalyzers . | . . . . Garrison Access . | . . . . Data Cores Recovered . | . . . . Used . | . . . . Hacking Detections 7 | . 1 6 . Full Trace Events . | . . . . Feedback Events . | . . . . Feedback Blocked . | . . . . Robot Schematics Acquired . | . . . . Robots Built . | . . . . Authchips . | . . . . Time . | . . . . Total Robot Build Rating . | . . . . Part Schematics Acquired . | . . . . Parts Built . | . . . . Authchips . | . . . . Time . | . . . . Total Part Build Rating . | . . . . Parts Repaired . | . . . . Time . | . . . . Parts Recycled . | . . . . Recycled Matter . | . . . . Retrieved Matter . | . . . . Retrieved Components . | . . . . Parts Scanalyzed . | . . . . Part Schematics Acquired . | . . . . Parts Damaged . | . . . . Bothacking | -11 -10 -9 -9 ------------ Run | Scr Mat Mat Min Used RIF Installer . | . . . . Robots Hacked . | . . . . Non-combat . | . . . . Combat . | . . . . Robot Hacks Applied . | . . . . Relay Couplers Released . | . . . . Fabnet Peak Effective % . | . . . . Robots Rewired . | . . . . Allies Hacked . | . . . . Hacks Repelled . | . . . . Allies | -11 -10 -9 -9 -------- Run | Scr Mat Mat Min Total Allies . | . . . . Largest Group . | . . . . Highest-Rated Group . | . . . . Highest-Rated Ally . | . . . . Total Orders . | . . . . Ally Attacks . | . . . . Total Damage . | . . . . Kills . | . . . . Allies Corrupted . | . . . . Allies Melted . | . . . . Intel | -11 -10 -9 -9 ------- Run | Scr Mat Mat Min Robot Analysis Total . | . . . . Derelict Logs Recovered . | . . . . Drone Launches . | . . . . Drone Recoveries . | . . . . Exploration | -11 -10 -9 -9 ------------- Run | Scr Mat Mat Min Turns Passed 1438 | . 479 934 25 Spaces Moved 752 | 1 226 510 15 Core 2 | . 1 1 . Treads 124 | . 40 84 . Legs 626 | 1 185 425 15 Wheels . | . . . . Hover . | . . . . Flight . | . . . . Fastest Speed 100 | 120 120 100 130 Average Speed 133 | 120 127 135 130 Slowest Speed 250 | 120 250 200 130 Overloaded Moves . | . . . . Propulsion Burnouts . | . . . . Robots Hopped . | . . . . Cave-ins Triggered . | . . . . Exploration Rate (%) 25 | 2 32 63 3 Regions Visited 3 Branch Regions 1 Pre-discovered Areas 2 | . 1 . 1 Known Exits Taken . | . . . . Unknown Exits Taken 3 | 1 1 1 . Scrap Searched . | . . . . Spaces Dug 4 | . . 4 . Terrain Destroyed 30 | . . 22 8 Melee . | . . . . Projectile . | . . . . AOE 30 | . . 22 8 Terrain Rammed . | . . . . Walls Destroyed . | . . . . Machines Disabled . | . . . . Actions | -11 -10 -9 -9 --------- Run | Scr Mat Mat Min Total 1059 | . 374 666 19 Wait 166 | . 101 65 . Move 749 | . 225 509 15 Hop . | . . . . Pick Up 11 | . 6 5 . Fast Attach 11 | . 3 8 . Attach 5 | . . 2 3 Detach . | . . . . Swap 8 | . 4 4 . Drop 18 | . 8 10 . Fire 90 | . 27 62 1 Melee . | . . . . Ram . | . . . . Kick . | . . . . Crush 1 | . . 1 . Escape Stasis . | . . . . Rewire . | . . . . Trap . | . . . . Miscellaneous . | . . . . Route ------- -11/Scrapyard -10/Materials -9/Materials (discovered 3 exits: [*Mat] / [*Min x2]) -9/Mines History --------- Turn | Location | Event 1 | -11/Scrapyard | Discovered new exit (range 0) 1 | -11/Scrapyard | Entered Materials 309 | -10/Materials | Build established: Mutant 470 | -10/Materials | Discovered new exit (range 3) 480 | -10/Materials | Entered another Materials area 480 | -9/Materials | Evolved 2 slots: Utility x2 786 | -9/Materials | Discovered new exit (range 16) 1135 | -9/Materials | Discovered new exit (range 6) 1237 | -9/Materials | Core integrity fell below 50% 1267 | -9/Materials | Lost 3 parts (1u2w) 1360 | -9/Materials | Discovered new exit (range 14) 1413 | -9/Materials | Core integrity fell below 20% 1414 | -9/Materials | Entered Mines 1415 | -9/Mines | Learned location of Storage (-9) 1439 | -9/Mines | Self-destructed Last Messages --------------- 01360_ EXIT=FOUND 01395_ Imp. Assault Rifle destroyed. 01405_ Titanium Leg destroyed. 01408_ Ion Engine destroyed. 01409_ K-01 Serf destroyed. 01411_ Hcp. Matter Pod destroyed. 01411_ Weight Redist. System destroyed. LOCATION=UNKNOWN GOAL=ESCAPE 01415_ A derelict emerges from the shadows: "Are any of them following you? I'm here trying to lose some heat after our second raid on Storage failed. Whatever you do stay away from that place, they've tightened security following our previous successful raids." World map updated: -9/Storage. 01417_ HL-DFG(g): "We scattered so the Unaware couldn't effectively use their advantage in numbers, and I suggest you do the same." 01417_ HL-DFG(g) slips back into the shadows. 01437_ Destroyed Flight Unit. 01437_ S-10 Pest destroyed. 01438_ Grenade Launcher destroyed. Map ----- +----------------------------------------------------+ | ??????????????????????????????? | | ??????????????????????????????? | | ??????????????????????????????? | | ??????????????????????????????? | | ??????????????????????????????? | | ??????????????????????????????? | | ??????????????????????????????? | | ??????????????????????????????? | | ??????????????????????????????? | | ??????????????????????????????? | | ??????????????????????????????? | | ??????????????????????????????? | | ??????????????????????????????? | | ??????????????????????????????? | | ?????????????????##???????????? | | ?????????????????? ?????????? | | ???????????????????"""????????? | | ?????????????????????" ####???? | | ??????????????????????? #???? | | ????????????????????????# #???? | | ????????????????????????# #???? | | ???????????????????????## #???? | | ??????????????????????## %##??? | | ??????????????????????# #??? | | ?????????????????????## ss ##?? | | ????????????????????## @ #?? | | ????????????????????# #?? | | ????????????????????# #?? | | ????????????????????## ##?? | | ?????????????????????## ##??? | | ??????????????????????## #???? | | ???????????????????????####???? | | ??????????????????????????????? | | ??????????????????????????????? | | ??????????????????????????????? | | ??????????????????????????????? | | ??????????????????????????????? | | ??????????????????????????????? | | ??????????????????????????????? | | ??????????????????????????????? | | ??????????????????????????????? | | ??????????????????????????????? | | ??????????????????????????????? | | ??????????????????????????????? | | ??????????????????????????????? | | ??????????????????????????????? | | ??????????????????????????????? | | ??????????????????????????????? | | ??????????????????????????????? | | ??????????????????????????????? | +----------------------------------------------------+ Best States ------------- Heat Dissipation 38 Energy Generation 12 Energy Capacity 265 Matter Stores 373 Matter Capacity 500 Sight Range 16 Terrain Scan Density 10 Additional Mass Support 6 Evasion (%) 55 Targeting Accuracy 6 Recoil Reduction 2 Item Schematics ----------------- None Robot Schematics ------------------ None Fabricated ------------ Nothing Alien Tech Used ----------------- None Achievements -------------- None Challenges ------------ None Game ------ Seed NovaMyomerSlayer Manual? 0 Play Time 00:13:19 Cumulative 48.9 hours Start 2022.06.29 @ 17:31:22 End 2022.06.29 @ 17:44:01 Sessions 1 Manual Loads 0 Difficulty Rogue Special Mode None Game No. 78 Rogue 78 Adventurer 0 Explorer 0 Win Type - Total 0 Types 0/0/0/0/0/0/0/0/0 Lore% 32 Gallery% 36 Achievement% 30 Wizard Run 0 Options --------- ASCII 0 Keyboard 1 Movement Vi Keybinds 1 Fullscreen 1 Font 24/Smallcaps Map View 76x50 Tactical HUD 1 Map Filters NONE Filters NONE Steam 1 RUN: 662c6327-b79e-4cae-95cb-26e25c0fe33f